Cogmind - Beta 10.2 @@@ ROGUE MODE // 2021.07.02 @ 20:57:29 Player: Sanctumkeeper Result: Self-destructed Performance ------------- Evolutions (3) 1500 Regions Visited (8) 1600 Robots Destroyed (97) 485 Value Destroyed (2557) 2557 Prototype IDs (25) 500 Alien Tech Used (0) 0 Bonus (306) 306 TOTAL SCORE: 6948 Bonus ------- High Alert Combat Kills 6 Aligned with FarCom 300 Cogmind --------- Core Integrity 659/700 Matter 56/300 Energy 29/100 System Corruption 0% Temperature Cool (204) Movement Core (400) Ox7 Location -7/Factory Parts ------- > --- POWER (1) -------- (None) > --- PROPULSION (4) --- Xenon Bombardment Thruster Xenon Bombardment Thruster Xenon Bombardment Thruster Xenon Bombardment Thruster > --- UTILITY (6) ------ Medium Storage Unit Improved Sensor Array Advanced Signal Interpreter Transmission Jammer Hacking Suite Hacking Suite > --- WEAPON (2) ------- Guided Plasma Cannon Katana > --- INVENTORY (8) ---- Light Nuclear Core Improved Sensor Array Improved Melee Analysis Suite Propulsion Shielding Layered Light Armor Plating System Backup Module Remote Datajack Longsword +1 Peak State ------------ > --- POWER ------------ Light Nuclear Core > --- PROPULSION ------- Xenon Bombardment Thruster Xenon Bombardment Thruster Xenon Bombardment Thruster Xenon Bombardment Thruster > --- UTILITY ---------- Medium Storage Unit Improved Sensor Array Advanced Signal Interpreter Transmission Jammer Hacking Suite Hacking Suite > --- WEAPON ----------- Guided Plasma Cannon Katana > --- INVENTORY -------- Light Nuclear Core Improved Sensor Array Improved Melee Analysis Suite Propulsion Shielding Layered Light Armor Plating System Backup Module Remote Datajack Longsword +1 [Rating: 48] Favorites ----------- Power Improved Ion Engine Engine Improved Ion Engine Power Core Light Nuclear Core Propulsion Light Treads Treads Light Treads Flight Unit Xenon Bombardment Thruster Utility High-capacity Storage Unit Device Improved Sensor Array Storage High-capacity Storage Unit Processor Advanced Signal Interpreter Hackware Hacking Suite Protection Light Armor Plating Weapon Minigun Energy Cannon Guided Plasma Cannon Ballistic Gun Minigun Launcher Rocket Launcher Special Weapon Remote Datajack Slashing Weapon Katana Build | -11 -10 -10 -9 -9 -9 -8 -8 -7 ------- Run | Scr Mat Min Mat Min Exi Min Mat Fac Slots Evolved 6 | . . . 2 . . . 2 2 Power . | . . . . . . . . . Propulsion 2 | . . . 1 . . . . 1 Utility 4 | . . . 1 . . . 2 1 Weapon . | . . . . . . . . . Parts Attached 79 | 6 7 8 16 2 4 2 13 21 Power 6 | 1 . . 2 . 1 . . 2 Engine 4 | 1 . . 2 . 1 . . . Core 2 | . . . . . . . . 2 Reactor . | . . . . . . . . . Propulsion 20 | 2 . 1 3 . . 1 6 7 Treads 13 | 2 . 1 3 . . 1 6 . Leg . | . . . . . . . . . Wheel . | . . . . . . . . . Hover . | . . . . . . . . . Flight 7 | . . . . . . . . 7 Utility 20 | 1 2 2 3 . 2 1 2 7 Device 2 | . . . . . . . . 2 Storage 11 | 1 2 2 . . 2 1 1 2 Processor 1 | . . . . . . . . 1 Hackware 2 | . . . . . . . . 2 Protection 4 | . . . 3 . . . 1 . Artifact . | . . . . . . . . . Weapon 33 | 2 5 5 8 2 1 . 5 5 Energy Gun . | . . . . . . . . . Energy Cannon 1 | . . . . . . . . 1 Ballistic Gun 19 | 2 3 3 7 . 1 . 3 . Ballistic Cannon . | . . . . . . . . . Launcher 8 | . 2 2 . 2 . . 1 1 Special Weapon 2 | . . . . . . . . 2 Impact Weapon . | . . . . . . . . . Slashing Weapon 3 | . . . 1 . . . 1 1 Piercing Weapon . | . . . . . . . . . Special Melee Weapon . | . . . . . . . . . Unidentified Prototypes 1 | . . . 1 . . . . . Parts Lost 13 | . . 2 8 . . 1 1 1 Power 3 | . . . 2 . . . . 1 Propulsion 3 | . . 1 1 . . 1 . . Utility 2 | . . . 2 . . . . . Weapon 5 | . . 1 3 . . . 1 . Highest Loss Streak 3 | . . 1 3 . . 1 1 1 Average Slot Usage (%) 99 | . 96 100 99 100 100 100 99 94 Engine 10 | . 14 14 10 11 11 11 9 2 Treads 28 | . 28 28 33 33 33 33 27 7 Storage 28 | . 25 28 22 22 22 32 35 15 Protection 6 | . . . 10 11 11 . 8 . Ballistic Gun 20 | . 27 27 21 11 19 22 17 3 Naked Turns . | . . . . . . . . . Heaviest Build 150 | 12 33 41 48 49 81 109 150 149 Greatest Support 65 | 40 40 40 60 60 60 60 65 65 Greatest Overweight (x) 2 | . . 1 . . 1 1 2 2 Average Overweight (x) . | . . . . . . 1 1 . Largest Inventory Capacity 36 | 6 14 16 16 16 20 28 36 36 Average Capacity 23 | 5 11 15 16 16 19 27 35 18 Most Carried 36 | 3 14 16 16 16 20 24 36 36 Average Carried 21 | 2 9 14 15 16 18 23 34 17 Final Capacity 36 | 6 14 16 16 16 20 28 36 8 Final Carried 36 | 3 14 14 16 16 20 24 36 8 Class Distribution -------------------- 49% | Hauler-Mutant 25% | Scavenger-Mutant 23% | Mutant Dominant Class ---------------- Mutant | -10/Materials Mutant | -10/Mines Scavenger-Mutant | -9/Materials Scavenger-Mutant | -9/Mines Hauler-Mutant | -9/Exiles Hauler-Mutant | -8/Mines Hauler-Mutant | -8/Materials Hacker-Mutant | -7/Factory Resources | -11 -10 -10 -9 -9 -9 -8 -8 -7 ----------- Run | Scr Mat Min Mat Min Exi Min Mat Fac Matter Collected 2078 | 193 227 312 463 20 . 151 712 . Remotely . | . . . . . . . . . Salvage Created 3242 | . 277 340 1137 . . 201 1255 32 Parts 213 | . 33 27 63 . . 10 79 1 Haulers Intercepted 4 | . 1 . 2 . . . 1 . Recyclers Shooed 3 | . . . 2 . . . 1 . Parts Field Recycled . | . . . . . . . . . Retrieved Matter . | . . . . . . . . . Parts Self-Destructed . | . . . . . . . . . Prevented . | . . . . . . . . . Kills | -11 -10 -10 -9 -9 -9 -8 -8 -7 ------- Run | Scr Mat Min Mat Min Exi Min Mat Fac Combat Hostiles Destroyed 86 | . 10 13 21 . . 6 27 9 Guns 64 | . 7 7 21 . . 6 23 . Cannons 1 | . . . . . . . . 1 AOE 21 | . 3 6 . . . . 4 8 Classes Destroyed 11 | . 4 1 3 . . 1 1 1 Worker 4 | . . 1 2 . . 1 . . Builder 3 | . 1 . 1 . . . 1 . Hauler 4 | . 1 . 2 . . . 1 . Recycler 3 | . . . 2 . . . 1 . Operator 2 | . . . . . . . 2 . Watcher 3 | . . . 1 . . . 2 . Swarmer 33 | . 6 6 7 . . 3 10 1 Grunt 27 | . 4 7 6 . . 2 8 . Duelist 2 | . . . . . . 1 1 . Sentry 16 | . . . 8 . . . 8 . Assembled 8 | . . . . . . . . 8 Best Kill Streak 10 | . 3 4 10 . . 3 4 8 Combat Bots Only 8 | . 3 3 4 . . 3 4 8 Max Kills in Single Turn 4 | . 3 2 2 . . 1 4 3 Gunslinging 1 | . . 1 1 . . . 1 . Exploded 4 | . 3 2 . . . . 4 3 Melee . | . . . . . . . . . Uniques/NPCs Destroyed . | . . . . . . . . . Combat | -11 -10 -10 -9 -9 -9 -8 -8 -7 -------- Run | Scr Mat Min Mat Min Exi Min Mat Fac Damage Taken 3461 | . 234 536 1140 . . 217 1056 278 Core 548 | . 50 65 198 . . 45 149 41 Absorbed by Shields 78 | . . . . . . . . 78 Core Remaining (%) 66 | 100 . 54 . . . 39 72 . Volleys Fired 224 | . 31 29 73 . . 12 73 6 Largest 2 | . 2 2 2 . . 2 2 1 Hottest 120 | . 40 40 50 . . 50 50 120 Shots Fired 424 | . 58 50 141 . . 24 145 6 Gun 405 | . 54 42 141 . . 24 144 . Cannon 3 | . . . . . . . . 3 Launcher 16 | . 4 8 . . . . 1 3 Special . | . . . . . . . . . Kinetic 405 | . 54 42 141 . . 24 144 . Thermal 3 | . . . . . . . . 3 Explosive 16 | . 4 8 . . . . 1 3 Electromagnetic . | . . . . . . . . . Robot Hit Streak 33 | . 9 11 18 . . 13 33 12 Robot Miss Streak 4 | . 4 1 2 . . 1 3 . Penetration Max . | . . . . . . . . . Secondary Targets 9 | . 2 1 3 . . 1 2 . Max Gunslinging Chain 1 | . 1 1 1 . . 1 1 . Shots Hit Robots 322 | . 35 35 115 . . 19 112 6 Core Hits 164 | . 19 23 47 1 . 9 51 14 Critical Hits 3 | . . . 1 . . . 2 . Critical Kills 2 | . . . 1 . . . 1 . Critical Parts Destroyed 1 | . . . . . . . 1 . Melee Attacks 5 | . . . 1 . . . 4 . Impact . | . . . . . . . . . Slashing 5 | . . . 1 . . . 4 . Piercing . | . . . . . . . . . Sneak Attacks 1 | . . . . . . . 1 . Combat Hostiles . | . . . . . . . . . Follow-up Attacks . | . . . . . . . . . Damage Inflicted 6364 | . 601 771 1610 1 . 338 2284 759 Guns 4562 | . 415 378 1532 . . 308 1929 . Cannons 102 | . . . . . . . . 102 Explosions 1438 | . 186 393 . . . . 202 657 Melee 87 | . . . . . . . 87 . Ramming 175 | . . . 78 1 . 30 66 . Kinetic 4562 | . 415 378 1532 . . 308 1929 . Thermal 233 | . . . . . . . . 233 Explosive 1307 | . 186 393 . . . . 202 526 Electromagnetic . | . . . . . . . . . Impact . | . . . . . . . . . Slashing 87 | . . . . . . . 87 . Piercing . | . . . . . . . . . Highest Corruption . | . . . . . . . . . Average Corruption . | . . . . . . . . . Corruption Purged . | . . . . . . . . . Overload Shots . | . . . . . . . . . Overflow Damage 19 | . . 2 . . . . 9 8 Projectiles . | . . . . . . . . . Explosions 10 | . . 2 . . . . . 8 Melee 9 | . . . . . . . 9 . Knockbacks 1 | . . . 1 . . . . . Impact 1 | . . . 1 . . . . . Kinetic . | . . . . . . . . . Secondary . | . . . . . . . . . Self-Inflicted Damage 47 | . . 23 . . . . 19 5 Shots 3 | . . 1 . . . . 1 1 Rammed 17 | . 2 . 11 1 . 1 2 . Targets Rammed 20 | . 2 . 12 1 . 2 3 . Kicked . | . . . . . . . . . Crushed 3 | . . . 1 . . 1 1 . Highest Temperature 198 | . 12 18 26 . . 30 100 198 Average Temperature 18 | . 7 7 5 . . 16 25 115 Received Heat Transfer 1107 | . 78 225 375 . . 72 351 6 Siege Activations . | . . . . . . . . . Robots Corrupted . | . . . . . . . . . Combat Hostiles . | . . . . . . . . . Parts Fried . | . . . . . . . . . Impact Corruptions 1 | . . . . . . . 1 . Robots Melted . | . . . . . . . . . Combat Hostiles . | . . . . . . . . . Parts Melted . | . . . . . . . . . Heat Transferred 340 | . . . . . . . . 340 Parts Sabotaged . | . . . . . . . . . Parts Stolen . | . . . . . . . . . Parts Stripped . | . . . . . . . . . Power Chain Reactions . | . . . . . . . . . Missiles Intercepted . | . . . . . . . . . Alert | -11 -10 -10 -9 -9 -9 -8 -8 -7 ------- Run | Scr Mat Min Mat Min Exi Min Mat Fac Peak Influence 469 | . 182 257 323 125 . 150 340 469 Initial 154 | . . 27 53 125 . . . 154 Average 131 | . 50 142 146 125 . 94 135 370 Maximum Alert Level 2 | . . 1 1 . . . 1 2 Low Security (%) 78 | 100 100 93 68 100 . 100 73 10 Level 1 19 | . . 6 31 . . . 26 53 Level 2 1 | . . . . . . . . 36 Level 3 . | . . . . . . . . . Level 4 . | . . . . . . . . . Level 5 . | . . . . . . . . . High Security . | . . . . . . . . . Max Security . | . . . . . . . . . Squads Dispatched 5 | . 2 1 . . . . 1 1 Investigation 3 | . 1 1 . . . . 1 . Extermination . | . . . . . . . . . Reinforcement 1 | . 1 . . . . . . . Assault 1 | . . . . . . . . 1 Garrison . | . . . . . . . . . Intercept . | . . . . . . . . . Construction Impeded . | . . . . . . . . . Haulers Reinforced . | . . . . . . . . . Stealth | -11 -10 -10 -9 -9 -9 -8 -8 -7 --------- Run | Scr Mat Min Mat Min Exi Min Mat Fac Distress Signals 8 | . 2 . 2 . . . 4 . Communications Jammed . | . . . . . . . . . Distress Signals . | . . . . . . . . . Times Spotted 137 | . 21 13 35 . . 6 44 18 Peak Tracking Total 7 | . 5 3 4 . . 3 5 7 Tactical Retreats 9 | . 1 . 2 . . . 4 2 Traps | -11 -10 -10 -9 -9 -9 -8 -8 -7 ------- Run | Scr Mat Min Mat Min Exi Min Mat Fac Traps Triggered 5 | . 1 . . . . . 2 2 Indirectly . | . . . . . . . . . Trap Hack Attempts . | . . . . . . . . . Triggered . | . . . . . . . . . Disarmed . | . . . . . . . . . Reprogrammed . | . . . . . . . . . Reused . | . . . . . . . . . Traps Extracted . | . . . . . . . . . Installed . | . . . . . . . . . Triggered . | . . . . . . . . . Machines | -11 -10 -10 -9 -9 -9 -8 -8 -7 ---------- Run | Scr Mat Min Mat Min Exi Min Mat Fac Machines Disabled 7 | . 1 1 . . . . 1 4 Max in Single Turn 4 | . 1 1 . . . . 1 4 Garrison Access 2 | . . . . . . . 1 1 Machines Sabotaged . | . . . . . . . . . Garrisons Compromised 1 | . . . . . . . . 1 Overloaded Fab Kills . | . . . . . . . . . Fab Network Shutdowns . | . . . . . . . . . Hacking | -11 -10 -10 -9 -9 -9 -8 -8 -7 --------- Run | Scr Mat Min Mat Min Exi Min Mat Fac Machines Accessed 23 | . 3 2 8 . 2 . 7 1 Terminals 17 | . 3 . 7 . . . 6 1 Fabricators . | . . . . . . . . . Repair Stations . | . . . . . . . . . Recycling Units . | . . . . . . . . . Scanalyzers 1 | . . . 1 . . . . . Garrison Access 1 | . . . . . . . 1 . Total Hacks 54 | . 9 2 23 . 2 . 16 2 Successful 31 | . 5 2 13 . 2 . 8 1 Failed 23 | . 4 . 10 . . . 8 1 Catastrophic 5 | . . . 2 . . . 2 1 Database Lockouts . | . . . . . . . . . Manual 39 | . 9 . 16 . 1 . 12 1 Terminals 48 | . 9 . 22 . . . 15 2 Fabricators . | . . . . . . . . . Repair Stations . | . . . . . . . . . Recycling Units . | . . . . . . . . . Scanalyzers 1 | . . . 1 . . . . . Garrison Access 1 | . . . . . . . 1 . Terminal Hacks 11 | . 2 2 3 . 2 . 2 . Record 1 | . . . . . 1 . . . Robot Analysis 3 | . 2 . 1 . . . . . Open Door 2 | . . 2 . . . . . . Branch Access Points 1 | . . . . . . . 1 . Hauler Manifests 1 | . . . . . . . 1 . Zone Layout 2 | . . . 2 . . . . . EX-Prototype ID Bank 1 | . . . . . 1 . . . Fabricator Hacks . | . . . . . . . . . Repair Station Hacks . | . . . . . . . . . Recycling Unit Hacks . | . . . . . . . . . Scanalyzer 1 | . . . 1 . . . . . Insert Component 1 | . . . 1 . . . . . Garrison Access Hacks 1 | . . . . . . . 1 . Seal Access 1 | . . . . . . . 1 . Unauthorized Hacks 18 | . 3 . 9 . . . 5 1 Terminals 18 | . 3 . 9 . . . 5 1 Track 3 | . 1 . 2 . . . . . Assimilate 1 | . . . 1 . . . . . Botnet 13 | . 2 . 5 . . . 5 1 Operators 1 | . . . 1 . . . . . Fabricators . | . . . . . . . . . Repair Stations . | . . . . . . . . . Recycling Units . | . . . . . . . . . Scanalyzers . | . . . . . . . . . Garrison Access . | . . . . . . . . . Data Cores Recovered 2 | . . . . . . . 2 . Used . | . . . . . . . . . Hacking Detections 16 | . 1 . 8 . . . 6 1 Full Trace Events . | . . . . . . . . . Feedback Events . | . . . . . . . . . Feedback Blocked . | . . . . . . . . . Robot Schematics Acquired . | . . . . . . . . . Robots Built . | . . . . . . . . . Matter . | . . . . . . . . . Time . | . . . . . . . . . Total Robot Build Rating . | . . . . . . . . . Part Schematics Acquired . | . . . . . . . . . Parts Built . | . . . . . . . . . Matter . | . . . . . . . . . Time . | . . . . . . . . . Total Part Build Rating . | . . . . . . . . . Parts Repaired . | . . . . . . . . . Time . | . . . . . . . . . Parts Recycled . | . . . . . . . . . Recycled Matter . | . . . . . . . . . Retrieved Matter . | . . . . . . . . . Retrieved Components . | . . . . . . . . . Parts Scanalyzed . | . . . . . . . . . Part Schematics Acquired . | . . . . . . . . . Parts Damaged . | . . . . . . . . . Bothacking | -11 -10 -10 -9 -9 -9 -8 -8 -7 ------------ Run | Scr Mat Min Mat Min Exi Min Mat Fac Used RIF Installer . | . . . . . . . . . Robots Hacked . | . . . . . . . . . Non-combat . | . . . . . . . . . Combat . | . . . . . . . . . Robot Hacks Applied . | . . . . . . . . . Relay Couplers Released . | . . . . . . . . . Robots Rewired . | . . . . . . . . . Allies Hacked . | . . . . . . . . . Hacks Repelled . | . . . . . . . . . Allies | -11 -10 -10 -9 -9 -9 -8 -8 -7 -------- Run | Scr Mat Min Mat Min Exi Min Mat Fac Total Allies 3 | . . . 1 2 . . . . Largest Group 2 | . . . 1 2 2 . . . Highest-Rated Group 50 | . . . 10 50 50 . . . Highest-Rated Ally 31 | . . . 10 31 31 . . . Total Orders . | . . . . . . . . . Ally Attacks . | . . . . . . . . . Total Damage . | . . . . . . . . . Kills . | . . . . . . . . . Allies Corrupted . | . . . . . . . . . Allies Melted . | . . . . . . . . . Intel | -11 -10 -10 -9 -9 -9 -8 -8 -7 ------- Run | Scr Mat Min Mat Min Exi Min Mat Fac Robot Analysis Total 3 | . 2 . 1 . . . . . Derelict Logs Recovered 1 | . . 1 . . . . . . Drone Launches . | . . . . . . . . . Drone Recoveries . | . . . . . . . . . Exploration | -11 -10 -10 -9 -9 -9 -8 -8 -7 ------------- Run | Scr Mat Min Mat Min Exi Min Mat Fac Turns Passed 7735 | 94 878 692 1592 373 701 469 2676 260 Spaces Moved 3883 | 55 470 336 778 219 392 237 1122 274 Core 4 | 4 . . . . . . . . Treads 3639 | 51 470 336 778 219 392 237 1122 34 Legs . | . . . . . . . . . Wheels . | . . . . . . . . . Hover . | . . . . . . . . . Flight 240 | . . . . . . . . 240 Fastest Speed 31 | 50 160 160 160 160 160 180 180 31 Average Speed 165 | 152 160 166 160 160 175 180 194 53 Slowest Speed 195 | 160 160 180 160 160 180 180 195 195 Overloaded Moves . | . . . . . . . . . Propulsion Burnouts . | . . . . . . . . . Robots Hopped . | . . . . . . . . . Cave-ins Triggered . | . . . . . . . . . Exploration Rate (%) 57 | 4 65 88 69 50 70 68 95 11 Regions Visited 8 Branch Regions 4 Pre-discovered Areas 1 | . . . . . 1 . . . Known Exits Taken . | . . . . . . . . . Unknown Exits Taken 8 | 1 1 1 1 1 1 1 1 . Scrap Searched 4 | . . 2 . 1 . 1 . . Spaces Dug 10 | . 6 . 1 . . . 3 . Terrain Destroyed 92 | . 19 34 1 . . . 11 27 Melee 4 | . . . 1 . . . 3 . Projectile . | . . . . . . . . . AOE 88 | . 19 34 . . . . 8 27 Terrain Rammed . | . . . . . . . . . Walls Destroyed . | . . . . . . . . . Machines Disabled . | . . . . . . . . . Actions | -11 -10 -10 -9 -9 -9 -8 -8 -7 --------- Run | Scr Mat Min Mat Min Exi Min Mat Fac Total 4817 | 63 542 421 987 241 404 258 1503 398 Wait 439 | . 16 30 83 19 . 1 237 53 Move 3875 | 54 469 335 777 218 391 236 1121 274 Hop . | . . . . . . . . . Pick Up 86 | 3 13 10 16 . 5 5 31 3 Fast Attach 14 | 6 1 . 2 . . . . 5 Attach 29 | . . 2 9 . . 1 3 14 Detach 8 | . . . . . . . . 8 Swap 36 | . 6 6 5 2 4 1 10 2 Drop 79 | . 4 9 9 1 4 . 21 31 Fire 224 | . 31 29 73 . . 12 73 6 Melee 5 | . . . 1 . . . 4 . Ram . | . . . . . . . . . Kick . | . . . . . . . . . Crush 20 | . 2 . 12 1 . 2 3 . Escape Stasis 2 | . . . . . . . . 2 Rewire . | . . . . . . . . . Trap . | . . . . . . . . . Miscellaneous . | . . . . . . . . . Route ------- -11/Scrapyard -10/Materials (discovered 3 exits: *Mat x2 / *Min) -10/Mines (discovered 2 exits: *Mat x2) -9/Materials (discovered 4 exits: *Mat x2 / [*Min x2]) -9/Mines (discovered 2 exits: *Mat / *Exi) -9/Exiles -8/Mines -8/Materials (discovered 3 exits: *Fac x3) -7/Factory History --------- Turn | Location | Event 15 | -11/Scrapyard | Discovered new exit (range 13) 95 | -11/Scrapyard | Entered Materials 308 | -10/Materials | Build established: Mutant 309 | -10/Materials | Discovered new exit (range 7) 661 | -10/Materials | Discovered new exit (range 14) 938 | -10/Materials | Discovered new exit (range 13) 973 | -10/Materials | Entered Mines 994 | -10/Mines | Met a Derelict bent on vengeance 1018 | -10/Mines | Learned 2 Materials zone layouts 1055 | -10/Mines | Found the Drone Emporium 1074 | -10/Mines | Found Prototype Device 1130 | -10/Mines | Discovered new exit (range 13) 1249 | -10/Mines | Met a Derelict shopkeep closing up shop 1516 | -10/Mines | Discovered new exit (range 10) 1665 | -10/Mines | Entered Materials 1665 | -9/Materials | Evolved 2 slots: Propulsion x1, Utility x1 1805 | -9/Materials | Lost 3 parts (1p2w) 1876 | -9/Materials | Identified Sensor Drone Bay 2146 | -9/Materials | Build established: Scavenger-Mutant 2186 | -9/Materials | Discovered new exit (range 8) 2492 | -9/Materials | Discovered new exit (range 5) 2695 | -9/Materials | Discovered new exit (range 7) 3106 | -9/Materials | Discovered new exit (range 7) 3257 | -9/Materials | Entered Mines 3258 | -9/Mines | Assembled infested the area 3314 | -9/Mines | Met 8R-AWN 3434 | -9/Mines | Discovered new exit (range 7) 3616 | -9/Mines | Discovered new exit (range 5) 3630 | -9/Mines | Entered Exiles 3630 | -9/Exiles | Accompanied by 2 allies 3660 | -9/Exiles | Led the pair of lost Derelicts to a safe place 3669 | -9/Exiles | Welcomed by 8R-AWN 3694 | -9/Exiles | Met EX-HEX 3844 | -9/Exiles | Met EX-DEC 3855 | -9/Exiles | Learned location of Zion (-6) 3889 | -9/Exiles | Met EX-BIN 3915 | -9/Exiles | Aligned with FarCom system 3916 | -9/Exiles | Given EX-Vault access code 3960 | -9/Exiles | Opened EX-Vault 3970 | -9/Exiles | Found Gui. Plasma Cannon 3977 | -9/Exiles | Found Longsword +1 4018 | -9/Exiles | Warned to stay clear of 0b10 Research branches 4070 | -9/Exiles | Build established: Hauler-Mutant 4317 | -9/Exiles | Discovered new exit (range 10) 4331 | -9/Exiles | Stole two prototypes: Gui. Plasma Cannon, Longsword +1 4331 | -9/Exiles | Entered Mines 4333 | -8/Mines | Core integrity fell below 50% 4785 | -8/Mines | Discovered new exit (range 10) 4800 | -8/Mines | Entered Materials 4800 | -8/Materials | Evolved 2 slots: Utility x2 5140 | -8/Materials | Discovered new exit (range 16) 5955 | -8/Materials | Discovered new exit (range 16) 7311 | -8/Materials | Discovered new exit (range 3) 7476 | -8/Materials | Entered Factory 7476 | -7/Factory | Evolved 2 slots: Propulsion x1, Utility x1 7478 | -7/Factory | FarCom data flow suspended 7523 | -7/Factory | Destroyed 8 combat bots 7736 | -7/Factory | Self-destructed Last Messages --------------- 07647_ K-01 Serf cleans the Fusion Modulator. 07680_ Dropped Melee Analysis Suite. 07680_ Acquired Imp. Melee Analysis Suite. 07696_ Dropped Hrd. Light Armor Plating. 07696_ Acquired Lyr. Light Armor Plating. 07707_ Triggered Blade Trap. 07707_ Massive razor-sharp blades shoot up from within the floor. 07707_ Xenon Bombardment Thruster severed. 07707_ Lgt. Nuclear Core severed. 07707_ Remote Datajack severed. 07708_ Acquired Xenon Bombardment Thruster. 07710_ Acquired Lgt. Nuclear Core. 07713_ Acquired Remote Datajack. 07724_ Triggered Stasis Trap. 07724_ A bubble of rippling energy engulfs the area. 07724_ Field strength at 95. 07725_ Field strength at 90. 07726_ Field strength at 75. 07732_ S-27 Virus destroyed. 07736_ Lgt. Nuclear Core destroyed. Map ----- +----------------------------------------------------+ | ????????????????????????????????????????????????? | | ????????????????????????????????????????????????? | | ????????????????????????????????????????????????? | | ????????????????????????????????????????????????? | | ????????????????????????????????????????????????? | | ????????????????????????????????????????????????? | | ????????????????????????????????????????????????? | | ????????????????????????????????????????????????? | | ????????????????????????????????????????????????? | | ???????????????????????? ?????????????????????? | | ???????????????????????? ???????????????????? | | ???????????????????????? #????????????????? | | ???????????????????????? g #????????????????? | | ???????????????????????? g +????????????????? | | ???????????????????????? gg #????????????????? | | ???????????????????????? #????????????????? | | ???????????????????????# #????????????????? | | ???????????????????????# #????????????????? | | ???????????????????????# #????????????????? | | ???????????????????????# #????????????????? | | ???????????????????????# #????????????????? | | ???????????????????????# #????????????????? | | ???????????????????????# #????????????????? | | ???????????????????????# #????????????????? | | ???????????????????????# #????????????????? | | ???????????????????????#@ ^ #????????????????? | | ???????????????????????#%s #????????????????? | | ?????????#+##+##########*s #????????????????? | | ?????????# #????????????????? | | ????#????# #????????????????? | | ????# ???# s a #????????????????? | | ????# ???# #????????????????? | | ????# ???# #????????????????? | | ????# ???#####/#####/### k#????????????????? | | ????# ???????# # #????????????????? | | ????# ###????# # #????????????????? | | ????# ###### """ """ # #????????????????? | | ????# / """ """ # ???????????????? | | ????# ###### """ """ # ?????????????? | | ????# #????# # ?????????????? | | ????# #????# !# """"" ?????????????? | | ????# #????# ! ! ] # """"" ?????????????? | | ????# #????########### "????????????????????? | | ????# #?############## ?????? ????????????? | | ????# #?? / # ???? ????????????? | | ????# #?# #?????? / ???????????? | | ????# #?# #????! ???????????? | | ????# #?# """ """ #??!! #????????????? | | ????# #?# """ """ # #????????????? | | ????# #?# """ """ + #????????????? | +----------------------------------------------------+ Best States ------------- Heat Dissipation 34 Energy Generation 14 Energy Capacity 265 Matter Stores 300 Matter Capacity 300 Sight Range 16 Robot Scan Range 13 Terrain Scan Density 10 Armor Coverage 225 Evasion (%) 63 Recoil Reduction 3 Offensive Hacking 20 Item Schematics ----------------- None Robot Schematics ------------------ None Fabricated ------------ Nothing Alien Tech Used ----------------- None Achievements -------------- None Challenges ------------ None Game ------ Seed BackupCompactBroadsword Manual? 0 Play Time 00:55:56 Cumulative 148.9 hours Start 2021.07.01 @ 20:23:24 End 2021.07.02 @ 20:57:29 Sessions 3 Manual Loads 0 Difficulty Rogue Special Mode None Game No. 115 Rogue 115 Adventurer 0 Explorer 0 Win Type - Total 5 Types 5/0/0/0/0/0/0/0/0 Lore% 78 Gallery% 65 Achievement% 54 Wizard Run 0 Options --------- ASCII 0 Keyboard 1 Movement Arrows Keybinds 0 Fullscreen 1 Font 18/SmallcapsGlow Map View 76x50 Tactical HUD 1 Map Filters NONE Filters NONE Steam 1 RUN: 1e97ad32-2501-4a2a-bce3-69ebca537fa3